lending/lending_fUSD_20251114
["ID","MTS","AMOUNT","RATE_DAILY","PERIOD"]
[393917737,1763094371309,-500.0,0.00049315,30]
[393917738,1763094371359,-500.0,0.00049315,30]
[393917739,1763094371410,-500.0,0.00049315,30]
[393917740,1763094371461,-500.0,0.00049315,30]
[393917741,1763094371512,-500.0,0.00049315,30]
[393917742,1763094371561,-500.0,0.00049315,30]
[393917743,1763094371611,-500.0,0.00049315,30]
[393917744,1763094371662,-500.0,0.00049315,30]
[393917745,1763094371712,-500.0,0.00049315,30]
[393917746,1763094371763,-609.61959938,0.00049315,30]
[393917747,1763094371811,-500.0,0.00049315,33]
[393917748,1763094371862,-500.0,0.00049315,33]
[393917749,1763094371914,-1000000.0,0.000495,120]
[393917750,1763094371964,-152.0,0.000497,120]
[393917751,1763094372014,-848.9,0.00049892,120]
[393917752,1763094372067,-37779.9690735,0.000499,120]
[393917753,1763094372120,-840.69816048,0.0004999,120]
[393917754,1763094372170,-178.90751252,0.0004999,120]
[393917755,1763094372223,-600.0,0.00049998,50]
[393917756,1763094372275,-1000.0,0.00049999,120]
[393917757,1763094372328,-497618.01074962,0.0005,120]
[393917758,1763094375698,-151.0,0.00036137,31]
[393917759,1763094375748,-151.0,0.00036137,31]
[393917760,1763094375825,-151.0,0.00039754,120]
[393917761,1763094375929,-243.92,0.0004775,120]
[393917762,1763094375981,-684.85,0.0004775,120]
[393917763,1763094376038,-677.84,0.0004775,120]
[393917764,1763094376097,-502381.98925038,0.0005,120]
[393917765,1763094376151,-478.78,0.0005,120]
[393917766,1763094376206,-200.21253075,0.0005,120]
[393917767,1763094376262,-234.95,0.0005,120]
[393917768,1763094376320,-1000000.0,0.0005,120]
[393917769,1763094376374,-1083.55288522,0.0005,120]
[393917770,1763094376424,-225.06860651,0.0005,120]
[393917771,1763094376473,-165.09925428,0.0005,120]
[393917772,1763094376524,-500.0,0.0005,30]
[393917773,1763094376585,-200.0,0.0005,120]
[393917774,1763094376647,-200.0,0.0005,120]
[393917775,1763094376699,-1009.0,0.0005,120]
[393917776,1763094376752,-585.32105163,0.0005,120]
[393917777,1763094376806,-1000000.0,0.0005,120]
[393917778,1763094376859,-1000000.0,0.0005,120]
[393917779,1763094376913,-706.78808812,0.0005,120]
[393917780,1763094376967,-1000000.0,0.0005,120]
[393917781,1763094377022,-489969.62833311,0.0005,120]
[393917783,1763094380145,-330.27207926,0.00049983,120]
[393917784,1763094380201,-510030.37166689,0.0005,120]
[393917785,1763094380255,-1000000.0,0.0005,120]
[393917786,1763094380309,-1000000.0,0.0005,120]
[393917787,1763094380362,-154.0,0.0005,120]
[393917788,1763094380414,-515.75943024,0.0005,120]
[393917789,1763094380468,-300.0,0.0005,60]
[393917790,1763094380520,-506.94302286,0.0005,120]
[393917791,1763094380572,-679.78959611,0.0005,120]
[393917792,1763094380622,-150.0,0.00050091,120]
[393917793,1763094380671,-300.0,0.00050274,120]
[393917794,1763094380720,-239.0,0.00050352,120]
[393917795,1763094380774,-1000000.0,0.000505,120]
[393917796,1763094380824,-152.0,0.000505,120]
[393917797,1763094380873,-5000.0,0.000505,120]
[393917798,1763094380922,-219.6265708,0.00050547,120]
[393917799,1763094380974,-227.51106223,0.00050547,120]
[393917800,1763094381026,-543.849,0.00050804,120]
[393917801,1763094381084,-3429.0,0.00050804,120]
[393917802,1763094381132,-1567.174,0.00050804,120]
[393917803,1763094381181,-814.0,0.00050804,120]
[393917804,1763094381231,-2145.0,0.00050804,120]
[393917805,1763094381280,-907.0,0.00050804,120]
[393917806,1763094381329,-1095.0,0.00050919,30]
[393917807,1763094381376,-1000.0,0.00050999,120]
[393917808,1763094381426,-1000000.0,0.00051,120]
[393917809,1763094381481,-154.0,0.00051,120]
[393917810,1763094381539,-1031.4382708,0.00051,120]
[393917811,1763094381590,-1000.0,0.000512,120]
[393917812,1763094381639,-1000.0,0.000512,120]
[393917813,1763094381687,-1000.0,0.000512,120]
[393917814,1763094381736,-1000.0,0.000512,120]
[393917815,1763094381786,-1000.0,0.000512,120]
[393917816,1763094381835,-1000.0,0.000512,120]
[393917817,1763094381885,-1000.0,0.000512,120]
[393917818,1763094381934,-1000.0,0.000512,120]
[393917819,1763094381983,-1000.0,0.000512,120]
[393917820,1763094382037,-1000.0,0.000512,120]
[393917822,1763094382089,-152.0,0.000512,120]
[393917823,1763094382138,-152.0,0.000519,120]
[393917824,1763094382189,-600.0,0.00051958,60]
[393917825,1763094382238,-1000.0,0.00051999,120]
[393917826,1763094382290,-600.0,0.00051999,52]
[393917827,1763094382342,-456004.26530081,0.00052,120]
[393917828,1763094385823,-687.15,0.0004424,30]
[393917829,1763094385878,-150.0,0.00049999,120]
[393917830,1763094385927,-150.0,0.00049999,120]
[393917831,1763094385976,-150.0,0.00049999,120]
[393917832,1763094386026,-243.22082757,0.00049999,120]
[393917833,1763094386081,-150.0,0.00049999,120]
[393917834,1763094386131,-214.32002281,0.00049999,120]
[393917835,1763094386182,-154.81792119,0.00049999,120]
[393917836,1763094386238,-543995.73469919,0.00052,120]
[393917837,1763094386290,-200.0,0.00052,120]
[393917838,1763094386338,-775.0784791,0.00052,120]
[393917839,1763094386386,-154.0,0.00052,120]
[393917840,1763094386435,-600.0,0.00052053,30]
[393917841,1763094386485,-500.0,0.00052054,120]
[393917842,1763094386533,-500.0,0.00052054,120]
[393917843,1763094386582,-500.0,0.00052054,120]
[393917844,1763094386630,-600.0,0.00052054,30]
[393917845,1763094386677,-600.0,0.00052054,120]
[393917846,1763094386726,-1040.09,0.00052055,120]
[393917847,1763094386776,-500.0,0.00052328,120]
[393917848,1763094386826,-500.0,0.00052328,120]
[393917849,1763094386874,-500.0,0.00052328,120]
[393917850,1763094386924,-1617.16289947,0.0005233,120]
[393917851,1763094386978,-1000000.0,0.000525,120]
[393917852,1763094387032,-1000000.0,0.000525,120]
[393917853,1763094387097,-1000000.0,0.000525,120]
[393917854,1763094387152,-152.0,0.000526,120]
[393917855,1763094387209,-602.97150163,0.00052602,120]
[393917856,1763094387262,-500.0,0.00052602,120]
[393917857,1763094387312,-500.0,0.00052602,120]
[393917858,1763094387363,-1635.35896607,0.000527,120]
[393917859,1763094387413,-221.7664771,0.000527,120]
[393917860,1763094387464,-2097.604,0.00052725,97]
[393917861,1763094387662,-185.044,0.00052725,97]
[393917862,1763094387713,-150.0,0.00052841,120]
[393917863,1763094387763,-246.0,0.0005287,120]
[393917864,1763094387812,-533.51154489,0.00052876,120]
[393917865,1763094387862,-500.0,0.00052876,120]
[393917866,1763094387911,-515.83523758,0.000529,120]
[393917867,1763094387960,-1000.0,0.00052999,120]
[393917868,1763094388010,-429.15274325,0.00053,120]
[393917869,1763094388062,-1000.0,0.00053,120]
[393917870,1763094388117,-1000000.0,0.00053,120]
[393917871,1763094388167,-154.0,0.00053,120]
[393917872,1763094388216,-508.0,0.00053,120]
[393917873,1763094388265,-388.0,0.00053,120]
[393917874,1763094388314,-500.0,0.0005315,120]
[393917875,1763094388368,-988.0,0.00053284,30]
[393917876,1763094388418,-152.0,0.000533,120]
[393917877,1763094388469,-150.0,0.00053329,120]
[393917878,1763094388521,-599.0,0.00053399,30]
[393917879,1763094388573,-599.0,0.00053399,30]
[393917880,1763094388624,-599.0,0.00053399,30]
[393917881,1763094388674,-599.0,0.00053399,30]
[393917882,1763094388724,-599.0,0.00053399,30]
[393917883,1763094388775,-599.0,0.00053399,30]
[393917884,1763094388825,-599.0,0.00053399,30]
[393917885,1763094388877,-599.0,0.00053399,30]
[393917886,1763094388927,-599.0,0.00053399,30]
[393917887,1763094388977,-599.0,0.00053399,30]
[393917888,1763094389029,-599.0,0.00053399,30]
[393917889,1763094389085,-599.0,0.00053399,30]
[393917890,1763094389137,-599.0,0.00053399,30]
[393917891,1763094389190,-599.0,0.00053399,30]
[393917892,1763094389243,-599.0,0.00053399,30]
[393917893,1763094389294,-599.0,0.00053399,30]
[393917894,1763094389343,-599.0,0.00053399,30]
[393917895,1763094389390,-599.0,0.00053399,30]
[393917896,1763094389439,-599.0,0.00053399,30]
[393917897,1763094389488,-599.0,0.00053399,30]
[393917898,1763094389535,-599.0,0.00053399,30]
[393917899,1763094389585,-599.0,0.00053399,30]
[393917900,1763094389636,-599.0,0.00053399,30]
[393917901,1763094389685,-603.08399798,0.00053399,30]
[393917902,1763094389735,-525.0,0.00053399,30]
[393917903,1763094389784,-525.0,0.00053399,30]
[393917904,1763094389833,-525.0,0.00053399,30]
[393917905,1763094389883,-525.0,0.00053399,30]
[393917906,1763094389933,-525.0,0.00053399,30]
[393917907,1763094389984,-525.0,0.00053399,30]
[393917908,1763094390042,-525.0,0.00053399,30]
[393917909,1763094390091,-525.0,0.00053399,30]
[393917910,1763094390139,-525.0,0.00053399,30]
[393917911,1763094390188,-525.0,0.00053399,30]
[393917912,1763094390239,-525.0,0.00053399,30]
[393917913,1763094390288,-525.0,0.00053399,30]
[393917914,1763094390338,-525.0,0.00053399,30]
[393917915,1763094390387,-525.0,0.00053399,30]
[393917916,1763094390435,-525.0,0.00053399,30]
[393917917,1763094390482,-525.0,0.00053399,30]
[393917918,1763094390531,-525.0,0.00053399,30]
[393917919,1763094390580,-525.0,0.00053399,30]
[393917920,1763094390627,-525.0,0.00053399,30]
[393917921,1763094390674,-525.0,0.00053399,30]
[393917922,1763094390721,-525.0,0.00053399,30]
[393917923,1763094390768,-525.0,0.00053399,30]
[393917924,1763094390815,-525.0,0.00053399,30]
[393917925,1763094390864,-525.20112483,0.00053399,30]
[393917926,1763094390914,-500.0,0.00053399,30]
[393917927,1763094390963,-500.0,0.00053399,30]
[393917928,1763094391010,-424.79698684,0.00053399,30]
[393917929,1763094391062,-500.0,0.00053399,30]
[393917930,1763094391111,-500.0,0.00053399,30]
[393917931,1763094391160,-500.0,0.00053399,30]
[393917932,1763094391209,-500.0,0.00053399,30]
[393917933,1763094391259,-500.0,0.00053399,30]
[393917934,1763094391308,-500.0,0.00053399,30]
[393917935,1763094391356,-500.0,0.00053399,30]
[393917936,1763094391403,-500.0,0.00053399,30]
[393917937,1763094391451,-500.0,0.00053399,30]
[393917938,1763094391498,-500.0,0.00053399,30]
[393917939,1763094391546,-500.0,0.00053399,30]
[393917940,1763094391594,-500.0,0.00053399,30]
[393917941,1763094391641,-447.73590631,0.00053399,30]
[393917942,1763094391687,-500.0,0.00053399,30]
[393917943,1763094391732,-500.0,0.00053399,30]
[393917944,1763094391778,-367.04874212,0.00053399,30]
[393917945,1763094391826,-500.0,0.00053399,30]
[393917946,1763094391875,-500.0,0.00053399,30]
[393917947,1763094391923,-500.0,0.00053399,30]
[393917948,1763094391974,-500.0,0.00053399,30]
[393917949,1763094392024,-500.0,0.00053399,30]
[393917950,1763094392076,-500.0,0.00053399,30]
[393917951,1763094392128,-500.0,0.00053399,30]
[393917952,1763094392178,-500.0,0.00053399,30]
[393917953,1763094392228,-500.0,0.00053399,30]
[393917954,1763094392279,-500.0,0.00053399,30]
[393917955,1763094392327,-288.89783888,0.00053399,30]
[393917956,1763094392375,-500.0,0.00053399,30]
[393917957,1763094392422,-500.0,0.00053399,30]
[393917958,1763094392470,-583.54036981,0.00053399,30]
[393917959,1763094392531,-500.0,0.00053399,30]
[393917960,1763094392582,-500.0,0.00053399,30]
[393917961,1763094392631,-500.0,0.00053399,30]
[393917962,1763094392680,-500.0,0.00053399,30]
[393917963,1763094392729,-569.97896579,0.00053399,30]
[393917964,1763094392975,-152.25031276,0.00053399,30]
[393917965,1763094393028,-150.0,0.00053399,30]
[393917966,1763094393087,-204.47724072,0.00053399,30]
[393917967,1763094393139,-500.0,0.00053399,30]
[393917968,1763094393189,-500.0,0.00053399,30]
[393917969,1763094393241,-500.0,0.00053399,30]
[393917970,1763094393294,-500.0,0.00053399,30]
[393917971,1763094393346,-500.0,0.00053399,30]
[393917972,1763094393401,-500.0,0.00053399,30]
[393917973,1763094393451,-500.0,0.00053399,30]
[393917974,1763094393502,-500.0,0.00053399,30]
[393917975,1763094393553,-500.0,0.00053399,30]
[393917976,1763094393604,-500.0,0.00053399,30]
[393917977,1763094393654,-500.0,0.00053399,30]
[393917978,1763094393704,-500.0,0.00053399,30]
[393917979,1763094393755,-573.64972731,0.00053399,30]
[393917980,1763094393811,-500.0,0.00053399,30]
[393917981,1763094393863,-539.36788946,0.00053399,30]
[393917982,1763094393915,-500.0,0.00053399,30]
[393917983,1763094393965,-500.0,0.00053399,30]
[393917984,1763094394015,-500.0,0.00053399,30]
[393917985,1763094394067,-500.0,0.00053399,30]
[393917986,1763094394120,-500.0,0.00053399,30]
[393917987,1763094394172,-500.0,0.00053399,30]
[393917988,1763094394232,-500.0,0.00053399,30]
[393917989,1763094394293,-500.0,0.00053399,30]
[393917990,1763094394353,-500.0,0.00053399,30]
[393917991,1763094394403,-500.0,0.00053399,30]
[393917992,1763094394453,-500.0,0.00053399,30]
[393917993,1763094394502,-500.0,0.00053399,30]
[393917994,1763094394554,-500.0,0.00053399,30]
[393917995,1763094394604,-500.0,0.00053399,30]
[393917996,1763094394656,-500.0,0.00053399,30]
[393917997,1763094394711,-500.0,0.00053399,30]
[393917998,1763094394761,-500.0,0.00053399,30]
[393917999,1763094394812,-500.0,0.00053399,30]
[393918000,1763094394865,-500.0,0.00053399,30]
[393918001,1763094394920,-500.0,0.00053399,30]
[393918002,1763094394973,-500.0,0.00053399,30]
[393918003,1763094395029,-500.0,0.00053399,30]
[393918004,1763094395087,-500.0,0.00053399,30]
[393918005,1763094395141,-500.0,0.00053399,30]
[393918006,1763094395196,-500.0,0.00053399,30]
[393918007,1763094395250,-500.0,0.00053399,30]
[393918008,1763094395303,-500.0,0.00053399,30]
[393918009,1763094395353,-180.19319552,0.00053399,30]
[393918010,1763094395403,-150.0,0.00053399,30]
[393918011,1763094395453,-150.0,0.00053399,30]
[393918012,1763094395501,-150.0,0.00053399,30]
[393918013,1763094395552,-161.28848318,0.00053399,30]
[393918014,1763094395605,-150.0,0.00053399,30]
[393918015,1763094395653,-150.0,0.00053399,30]
[393918016,1763094395702,-150.0,0.00053399,30]
[393918017,1763094395750,-150.0,0.00053399,30]
[393918018,1763094395799,-232.98372422,0.00053399,30]
[393918019,1763094395849,-665.0,0.00053399,30]
[393918020,1763094395899,-665.0,0.00053399,30]
[393918021,1763094395948,-665.0,0.00053399,30]
[393918022,1763094395999,-665.0,0.00053399,30]
[393918023,1763094396051,-665.0,0.00053399,30]
[393918024,1763094396104,-665.0,0.00053399,30]
[393918025,1763094396157,-665.0,0.00053399,30]
[393918026,1763094396212,-665.0,0.00053399,30]
[393918027,1763094396268,-665.0,0.00053399,30]
[393918028,1763094396326,-665.0,0.00053399,30]
[393918029,1763094396382,-665.0,0.00053399,30]
[393918030,1763094396438,-665.0,0.00053399,30]
[393918031,1763094396494,-665.0,0.00053399,30]
[393918032,1763094396562,-665.0,0.00053399,30]
[393918033,1763094396620,-665.0,0.00053399,30]
[393918034,1763094396674,-665.0,0.00053399,30]
[393918035,1763094396727,-665.0,0.00053399,30]
[393918036,1763094396780,-665.0,0.00053399,30]
[393918037,1763094396834,-665.0,0.00053399,30]
[393918038,1763094396886,-665.0,0.00053399,30]
[393918039,1763094396939,-665.0,0.00053399,30]
[393918040,1763094396991,-665.0,0.00053399,30]
[393918041,1763094397048,-665.0,0.00053399,30]
[393918042,1763094397102,-676.5562112,0.00053399,30]
[393918043,1763094397158,-500.0,0.00053399,30]
[393918044,1763094397211,-500.0,0.00053399,30]
[393918045,1763094397268,-500.0,0.00053399,30]
[393918046,1763094397324,-500.0,0.00053399,30]
[393918047,1763094397382,-500.0,0.00053399,30]
[393918048,1763094397440,-500.0,0.00053399,30]
[393918049,1763094397498,-500.0,0.00053399,30]
[393918050,1763094397554,-500.0,0.00053399,30]
[393918051,1763094397611,-500.0,0.00053399,30]
[393918052,1763094397664,-500.0,0.00053399,30]
[393918053,1763094397719,-500.0,0.00053399,30]
[393918054,1763094397776,-476.20736494,0.00053399,30]
[393918055,1763094397830,-500.0,0.00053399,30]
[393918056,1763094397887,-500.0,0.00053399,30]
[393918057,1763094397939,-500.0,0.00053399,30]
[393918058,1763094397988,-187.33636118,0.00053399,30]
[393918059,1763094398040,-500.0,0.00053424,120]
[393918060,1763094398102,-4000.0,0.000535,120]
[393918061,1763094398158,-247.27,0.000535,90]
[393918062,1763094398212,-1095.0,0.00053599,30]
[393918063,1763094398271,-500.0,0.00053698,120]
[393918064,1763094398330,-814.0,0.00053804,120]
[393918065,1763094398384,-2145.0,0.00053804,120]
[393918066,1763094398436,-907.0,0.00053804,120]
[393918067,1763094398733,-988.0,0.00053833,30]
[393918068,1763094398789,-2956.11,0.000539,120]
[393918069,1763094398845,-150.0,0.00053919,120]
[393918070,1763094398898,-576.37296519,0.00053972,120]
[393918071,1763094398952,-2463.70384501,0.00053998,31]
[393918072,1763094399005,-1000.0,0.00053999,120]
[393918073,1763094399058,-1444.62419749,0.00054,120]
[393918074,1763094399112,-4000.000099,0.00054,120]
[393918075,1763094399165,-1964.20029799,0.00054,120]
[393918076,1763094399220,-319.39155117,0.00054,120]
[393918077,1763094399272,-1000.0,0.00054,120]
[393918078,1763094399325,-200.0,0.00054,120]
[393918079,1763094399380,-312596.91328125,0.00054,120]
[393918080,1763094412818,5000.00058812,0.000162,5]
[393918082,1763094432527,166.66,0.00015974,2]
[393918083,1763094432760,166.66,0.0001631,2]
[393918084,1763094432967,166.66,0.00016647,2]
[393918086,1763094482442,150.0,0.00016763,2]
[393918094,1763094542394,150.0,0.00016781,2]
[393918102,1763094621511,250.0,0.0001682,2]
[393918124,1763094632298,-153.37,0.00016889,2]
[393918125,1763094632307,-300.0,0.00016907,2]
[393918126,1763094632317,-175.79,0.00016924,2]
[393918127,1763094632326,-166.66,0.00016983,2]
[393918128,1763094632335,-204.18,0.00017054,2]
[393918129,1763094632355,-95.82,0.00017054,2]
[393918130,1763094632366,-300.0,0.00017054,2]
[393918131,1763094632376,-300.0,0.00017054,2]
[393918132,1763094632386,-999.0,0.00017274,3]
[393918133,1763094632396,-166.66,0.00017319,2]
[393918134,1763094632406,-434.0,0.00017452,2]
[393918135,1763094632416,-168.0,0.00017493,2]
[393918136,1763094632426,-1000.0,0.00017603,2]
[393918137,1763094632436,-1301.003,0.00017603,2]
[393918138,1763094632446,-2794.3819,0.00017603,2]
[393918139,1763094632457,-234.6662,0.00017603,2]
[393918140,1763094632467,-160.84287596,0.00017616,2]
[393918141,1763094632482,-166.66,0.00017656,2]
[393918142,1763094632492,-168.0,0.00017659,2]
[393918143,1763094632502,-608.0,0.00017686,2]
[393918144,1763094632512,-1165.0,0.00017688,2]
[393918145,1763094632522,-151.0,0.00017692,2]
[393918146,1763094632532,-151.0,0.00017692,2]
[393918148,1763094632541,-151.0,0.00017692,2]
[393918150,1763094632550,-45.95426755,0.00017692,2]
[393918152,1763094632562,-105.04573245,0.00017692,2]
[393918154,1763094632572,-151.0,0.00017692,2]
[393918156,1763094632581,-151.0,0.00017692,2]
[393918158,1763094632590,-151.0,0.00017692,2]
[393918161,1763094632608,-151.0,0.00017692,2]
[393918163,1763094632618,-156.59838286,0.00017692,2]
[393918165,1763094632627,-19.98440938,0.00017692,2]
[393918167,1763094632639,-131.01559062,0.00017692,2]
[393918169,1763094632648,-151.0,0.00017692,2]
[393918171,1763094632658,-151.0,0.00017692,2]
[393918173,1763094632667,-123.38686084,0.00017692,2]
[393918537,1763094638215,-27.61313916,0.00017692,2]
[393918538,1763094638225,-151.0,0.00017692,2]
[393918539,1763094638237,-151.0,0.00017692,2]
[393918540,1763094638247,-151.0,0.00017692,2]
[393918541,1763094638257,-151.0,0.00017692,2]
[393918542,1763094638267,-151.0,0.00017692,2]
[393918543,1763094638277,-151.0,0.00017692,2]
[393918544,1763094638287,-151.0,0.00017692,2]
[393918545,1763094638296,-151.0,0.00017692,2]
[393918546,1763094638306,-151.0,0.00017692,2]
[393918547,1763094638320,-151.0,0.00017692,2]
[393918548,1763094638330,-151.0,0.00017692,2]
[393918549,1763094638340,-151.0,0.00017692,2]
[393918550,1763094638349,-151.0,0.00017692,2]
[393918551,1763094638359,-151.0,0.00017692,2]
[393918574,1763094638587,-151.0,0.00017692,2]
[393918576,1763094638597,-151.0,0.00017692,2]
[393918578,1763094638607,-500.0,0.00017702,2]
[393918580,1763094638616,-500.0,0.00017702,2]
[393918582,1763094638626,-571.72579273,0.00017702,2]
[393918584,1763094638636,-500.0,0.00017702,2]
[393918586,1763094638645,-500.0,0.00017702,2]
[393918588,1763094638655,-519.31438006,0.00017702,2]
[393918590,1763094638664,-500.0,0.00017702,2]
[393918592,1763094638674,-500.0,0.00017702,2]
[393918594,1763094638683,-500.0,0.00017702,2]
[393918596,1763094638692,-500.0,0.00017702,2]
[393918598,1763094638702,-500.0,0.00017702,2]
[393918600,1763094638711,-500.0,0.00017702,2]
[393918602,1763094638720,-500.0,0.00017702,2]
[393918604,1763094638732,-500.0,0.00017702,2]
[393918606,1763094638741,-396.48570665,0.00017702,2]
[393918608,1763094638750,-300.0,0.00017702,2]
[393918610,1763094638760,-286.84938763,0.00017702,2]
[393918612,1763094638769,-500.0,0.00017702,2]
[393918614,1763094638778,-500.0,0.00017702,2]
[393918615,1763094638787,-543.0041758,0.00017702,2]
[393918617,1763094638797,-500.0,0.00017702,2]
[393918618,1763094638807,-211.8169519,0.00017702,2]
[393918620,1763094638816,-500.0,0.00017702,2]
[393918622,1763094638825,-500.0,0.00017702,2]
[393918623,1763094638835,-503.92598697,0.00017702,2]
[393918624,1763094638844,-500.0,0.00017702,2]
[393918625,1763094638853,-500.0,0.00017702,2]
[393918626,1763094638863,-500.0,0.00017702,2]
[393918627,1763094638873,-500.0,0.00017702,2]
[393918628,1763094638882,-420000.0,0.00017703,2]
[393918629,1763094638893,-168.0,0.00017716,2]
[393918630,1763094638902,-168.0,0.00017767,2]
[393918631,1763094638911,-500.0,0.00017773,2]
[393918632,1763094638922,-501.05164124,0.00017773,2]
[393918633,1763094638931,-500.0,0.00017773,2]
[393918634,1763094638941,-1000.0,0.000178,2]
[393918635,1763094638950,-8327.91602247,0.000178,2]
[393918636,1763094638960,-1598.0,0.00017804,2]
[393918637,1763094638969,-821.0,0.00017804,2]
[393918638,1763094638979,-1275.0,0.00017804,2]
[393918639,1763094638991,-814.0,0.00017804,2]
[393918640,1763094639002,-1190.0,0.00017804,2]
[393918641,1763094639012,-907.0,0.00017804,2]
[393918642,1763094639022,-2145.0,0.00017804,2]
[393918643,1763094639032,-6669.0,0.00017804,2]
[393918644,1763094639042,-166.05,0.00017833,2]
[393918645,1763094639052,-200.0,0.00017856,2]
[393918646,1763094639062,-360.30042686,0.00017899,2]
[393918647,1763094639072,-160.84287596,0.000179,2]
[393918648,1763094639082,-226.99612483,0.000179,2]
[393918649,1763094639092,-1791.94,0.00017913,2]
[393918650,1763094639103,-168.0,0.00017932,2]
[393918651,1763094639113,-501.78019662,0.00017973,2]
[393918652,1763094639124,-500.0,0.00017987,2]
[393918653,1763094639138,-541.86,0.00017988,2]
[393918654,1763094639149,-117953.03,0.00017988,2]
[393918655,1763094639159,-3562.6886728,0.00017996,2]
[393918656,1763094639169,-300.0,0.00017999,2]
[393918657,1763094639179,-500.0,0.00017999,2]
[393918658,1763094639188,-500.0,0.00017999,2]
[393918659,1763094639198,-500.0,0.00017999,2]
[393918660,1763094639210,-500.0,0.00017999,2]
[393918661,1763094639220,-500.0,0.00017999,2]
[393918662,1763094639231,-500.0,0.00017999,2]
[393918663,1763094639241,-337.97311388,0.00017999,2]
[393918664,1763094639251,-500.0,0.00017999,2]
[393918665,1763094639261,-500.0,0.00017999,2]
[393918666,1763094639270,-500.0,0.00017999,2]
[393918667,1763094639280,-500.0,0.00017999,2]
[393918668,1763094639290,-500.0,0.00017999,2]
[393918669,1763094639300,-500.0,0.00017999,2]
[393918670,1763094639311,-500.0,0.00017999,2]
[393918671,1763094639320,-500.0,0.00017999,2]
[393918672,1763094639334,-500.0,0.00017999,2]
[393918673,1763094639344,-500.0,0.00017999,2]
[393918674,1763094639353,-500.0,0.00017999,2]
[393918675,1763094639363,-500.0,0.00017999,2]
[393918676,1763094639372,-500.0,0.00017999,2]
[393918677,1763094639382,-500.0,0.00017999,2]
[393918678,1763094639391,-500.0,0.00017999,2]
[393918679,1763094639400,-500.0,0.00017999,2]
[393918680,1763094639409,-500.0,0.00017999,2]
[393918681,1763094639419,-500.0,0.00017999,2]
[393918682,1763094639428,-414.79117042,0.00017999,2]
[393918683,1763094639438,-1005.8282,0.00017999,2]
[393918684,1763094639447,-500.0,0.00017999,2]
[393918685,1763094639457,-410.43985639,0.00017999,2]
[393918686,1763094639466,-500.0,0.00017999,2]
[393918687,1763094639476,-500.0,0.00017999,2]
[393918688,1763094639487,-500.0,0.00017999,2]
[393918689,1763094639497,-500.0,0.00017999,2]
[393918690,1763094639506,-500.0,0.00017999,2]
[393918691,1763094639516,-500.0,0.00017999,2]
[393918692,1763094639525,-500.0,0.00017999,2]
[393918693,1763094639534,-500.0,0.00017999,2]
[393918694,1763094639543,-500.0,0.00017999,2]
[393918695,1763094639552,-500.0,0.00017999,2]
[393918696,1763094639561,-500.0,0.00017999,2]
[393918697,1763094639571,-500.0,0.00017999,2]